bitfinex/quotes_ETHUSD_20240822
["timestamp","ask_amount","ask_price","bid_price","bid_amount"]
[1724345070102,5.45747,2619.6,2619.0,3.81813]
[1724345070280,3.81753,2619.5,2619.0,3.81813]
[1724345070967,1.64,2619.6,2619.2,3.81793]
[1724345071748,5.45741,2619.6,2619.2,0.9742877]
[1724345072047,5.45741,2619.6,2619.1,6.23738]
[1724345073554,3.81754,2619.5,2619.1,2.4193]
[1724345077122,1.64,2619.6,2619.1,6.31373448]
[1724345077329,5.45738,2619.6,2619.2,2.4557]
[1724345077543,5.45738,2619.6,2619.3,0.63501345]
[1724345078477,3.81716,2619.8,2619.3,0.63501345]
[1724345078675,5.45724,2619.7,2619.3,0.63501345]
[1724345078847,5.45724,2619.7,2619.2,6.27363]
[1724345079830,3.81746,2619.6,2619.2,2.4557]
[1724345081340,3.81746,2619.6,2619.2,6.27365]
[1724345081679,1.64,2619.7,2619.3,4.445155]
[1724345083081,3.81717,2619.8,2619.4,3.81766]
[1724345083372,5.45717,2619.8,2619.5,2.3966]
[1724345083547,3.81726,2619.7,2619.5,2.3966]
[1724345088086,3.81737,2619.6,2619.3,2.2509]
[1724345088282,3.81752,2619.5,2619.1,7.35876856]
[1724345088584,5.45738,2619.6,2619.2,1.11768786]
[1724345088890,5.45738,2619.6,2619.1,13.42773856]
[1724345090791,3.81752,2619.5,2619.1,9.60966856]
[1724345091277,5.45738,2619.6,2619.1,13.42774856]
[1724345091592,3.81759,2619.5,2619.1,9.60966856]
[1724345091797,3.81768,2619.4,2619.1,9.60966856]
[1724345092092,5.45768,2619.4,2619.1,9.60966856]
[1724345092962,3.81783,2619.3,2619.1,9.60966856]
[1724345093164,1.64,2619.2,2618.8,2.4772]
[1724345093391,5.45796,2619.2,2618.8,2.4772]
[1724345093551,1.64,2619.2,2618.8,2.4772]
[1724345093765,1.64,2619.2,2618.8,6.29571]
[1724345094102,5.45796,2619.2,2618.8,6.29571]
[1724345094800,1.64,2619.2,2618.8,10.11418]
[1724345095100,1.64,2619.2,2618.8,8.04296486]
[1724345097065,1.64,2619.2,2618.8,11.86143486]
[1724345097566,3.81781,2619.3,2618.9,3.81836]
[1724345097762,7.63467,2619.7,2619.0,6.14572]
[1724345097962,1.64,2619.6,2619.2,3.81795]
[1724345098802,5.4574,2619.6,2619.2,3.81795]
[1724345099304,5.4574,2619.6,2619.1,6.1457]
[1724345099669,3.81752,2619.5,2619.1,6.1457]
[1724345100179,3.81752,2619.5,2619.1,2.3276]
[1724345100902,7.63512,2619.5,2619.1,2.3276]
[1724345101126,5.45766,2619.4,2619.1,2.3276]
[1724345102352,3.81752,2619.5,2619.1,2.942183]
[1724345102928,1.64,2619.4,2619.1,2.942183]
[1724345103129,5.45771,2619.4,2619.1,2.942183]
[1724345104557,5.45771,2619.4,2619.1,2.3276]
[1724345104948,5.4481652,2619.4,2619.1,2.3276]
[1724345105667,3.81771,2619.4,2619.1,2.3276]
[1724345106848,5.45795,2619.2,2618.8,1.74729486]
[1724345107045,5.45795,2619.2,2618.7,13.44554856]
[1724345107772,1.64,2619.2,2618.7,13.44554856]
[1724345107969,5.45803,2619.2,2618.7,13.44554856]
[1724345108130,1.64,2619.0,2618.5,2.4172]
[1724345108469,5.45857,2618.8,2618.5,2.4172]
[1724345108773,1.64,2618.6,2618.2,7.35876856]
[1724345108946,5.4589,2618.6,2618.1,6.26936]
[1724345109270,6.10374,2618.8,2618.1,6.26936]
[1724345109271,1.64,2618.4,2618.1,2.4498]
[1724345109442,5.45921,2618.4,2617.9,9.75676856]
[1724345109767,1.64,2618.2,2617.9,9.75676856]
[1724345110327,1.64,2618.4,2617.9,9.75676856]
[1724345110555,4.3169874,2618.5,2617.9,9.75676856]
[1724345110759,4.36914,2618.4,2617.9,9.75676856]
[1724345111069,4.36914,2618.4,2617.9,13.57660856]
[1724345111267,3.81905,2618.5,2618.0,3.81969]
[1724345111441,4.429144,2618.7,2618.0,7.63929]
[1724345111629,4.36884,2618.6,2618.0,7.63929]
[1724345111973,4.36884,2618.6,2618.1,3.81954]
[1724345113252,3.81899,2618.5,2617.9,19.13596642]
[1724345113747,3.81899,2618.5,2618.0,4.84788797]
[1724345114759,3.81899,2618.5,2618.0,3.8197]
[1724345115659,3.81899,2618.5,2618.0,3.81962]
[1724345116213,7.63805,2618.5,2618.0,3.81962]
[1724345116675,3.81928,2618.3,2617.9,2.398]
[1724345116848,3.81928,2618.3,2617.9,3.75567386]
[1724345117465,3.81928,2618.3,2617.9,2.398]
[1724345118041,3.81899,2618.5,2617.9,2.398]
[1724345118042,3.81912,2618.4,2617.9,6.21782]
[1724345119231,3.81929,2618.3,2617.9,6.21782]
[1724345119436,3.81929,2618.3,2617.9,2.398]
[1724345121694,3.81929,2618.3,2617.9,6.21783]
[1724345122213,3.81899,2618.5,2617.9,7.95748086]
[1724345122386,0.55,2618.4,2617.9,7.95748086]
[1724345122711,4.36919,2618.4,2617.9,7.95748086]
[1724345125413,4.36919,2618.4,2617.9,6.21783]
[1724345125773,3.81919,2618.4,2617.9,6.21783]
[1724345131329,3.81927,2618.3,2617.9,6.21783]
[1724345132307,3.81927,2618.3,2617.9,2.398]
[1724345132475,5.46027,2618.3,2617.9,2.398]
[1724345132683,5.46027,2618.3,2617.9,6.21785]
[1724345134414,1.641,2618.3,2617.9,10.03763]
[1724345134722,1.641,2618.3,2617.9,6.21778]
[1724345138479,5.4603,2618.3,2617.9,6.21778]
[1724345142590,1.641,2618.1,2617.9,6.21778]
[1724345143834,1.641,2618.1,2617.9,2.398]
[1724345143986,3.81984,2618.0,2617.7,2.2915]
[1724345144329,1.641,2617.9,2617.7,2.2915]
[1724345146638,5.46086,2617.9,2617.4,2.3677]
[1724345146787,1.641,2617.7,2617.4,6.18825]
[1724345146992,1.641,2617.7,2617.4,2.3677]
[1724345147716,1.641,2617.7,2617.4,6.18828]
[1724345147916,1.641,2617.7,2617.3,6.82061]
[1724345147917,1.641,2617.9,2617.6,2.3026]
[1724345148726,3.81907,2618.5,2617.7,2.3026]
[1724345148932,1.641,2618.3,2617.7,6.12266]
[1724345149234,1.641,2618.1,2617.7,2.3026]
[1724345149792,5.46065,2618.1,2617.7,2.3026]
[1724345150038,6.637432,2618.1,2617.7,2.3026]
[1724345150241,6.637422,2618.1,2617.7,2.3026]
[1724345151841,5.46064,2618.1,2617.7,2.3026]
[1724345152417,3.81913,2618.4,2617.8,2.2949]
[1724345152619,1.641,2618.3,2617.9,2.2949]
[1724345152869,9.27966,2618.3,2617.9,2.2949]
[1724345153008,5.46027,2618.3,2617.9,2.2949]
[1724345153211,10.207554,2618.3,2617.9,2.2949]
[1724345153403,9.27962,2618.3,2617.9,2.2949]
[1724345153631,1.641,2618.1,2617.9,2.2949]
[1724345154144,5.46064,2618.1,2617.9,2.2949]
[1724345155953,1.641,2618.1,2617.9,2.2949]
[1724345156529,5.46058,2618.1,2617.9,2.2949]
[1724345156718,0.928001,2618.0,2617.9,2.2949]
[1724345157049,5.46058,2618.1,2617.9,2.2949]
[1724345157414,3.8197,2618.0,2617.5,2.3214]
[1724345157623,1.641,2617.9,2617.5,2.3214]
[1724345157828,3.82011,2617.8,2617.5,2.3214]
[1724345159363,3.8198,2618.0,2617.5,2.55354]
[1724345160368,3.8198,2618.0,2617.5,2.3214]
[1724345160770,1.641,2617.9,2617.5,2.3214]
[1724345161068,3.82007,2617.8,2617.5,2.3214]
[1724345161979,1.641,2618.1,2617.5,2.3214]
[1724345162162,3.81964,2618.1,2617.6,2.4893]
[1724345162534,3.81862,2618.8,2617.7,1.641]
[1724345162763,3.8187,2618.7,2618.2,2.4893]
[1724345162970,2.77,2618.9,2618.3,3.81916]
[1724345163176,0.59881611,2619.0,2618.4,2.4893]
[1724345163339,1.641,2619.2,2618.7,3.81868]
[1724345163539,1.641,2619.2,2618.8,2.4893]
[1724345163739,5.45897,2619.2,2618.8,2.4893]
[1724345163939,0.545897,2619.1,2618.8,2.4893]
[1724345164481,3.81839,2618.9,2618.4,2.4893]
[1724345164854,3.81863,2618.8,2618.4,2.4893]
[1724345165039,5.45963,2618.8,2618.4,2.4893]
[1724345165985,3.81885,2618.6,2618.4,2.4893]
[1724345166488,3.81885,2618.6,2618.2,2.3954]
[1724345166489,2.568848,2618.6,2618.2,2.3954]
[1724345166789,5.45963,2618.8,2618.2,2.3954]
[1724345167156,9.27825,2618.8,2618.2,2.3954]
[1724345167341,9.27828,2618.8,2618.2,2.3954]
[1724345167541,6.387448,2618.8,2618.2,2.3954]
[1724345167800,5.45962,2618.8,2618.2,2.3954]
[1724345168844,3.81868,2618.7,2618.2,2.3954]
[1724345170253,1.641,2618.8,2618.2,6.2148]
[1724345170682,3.81848,2618.9,2618.3,3.81923]
[1724345171108,3.81819,2619.1,2618.4,2.2712]
[1724345171387,5.45896,2619.2,2618.5,4.427933]
[1724345171604,3.81796,2619.2,2618.5,4.427933]
[1724345171766,3.81812,2619.1,2618.5,4.427933]
[1724345171952,3.8184,2618.9,2618.4,3.9122]
[1724345172147,3.8184,2618.9,2618.4,2.2712]
[1724345173486,3.8187,2618.7,2618.4,2.2712]
[1724345173708,3.81943,2618.2,2617.8,2.4411]
[1724345173862,3.81914,2618.4,2617.8,2.4411]
[1724345174047,3.81914,2618.4,2617.8,4.0821]
[1724345174382,3.81934,2618.3,2617.8,4.0821]
[1724345175144,3.81914,2618.4,2617.8,4.0821]
[1724345175584,0.639201,2618.4,2617.8,4.0821]
[1724345175896,3.81973,2618.0,2617.7,7.35876856]
[1724345176112,3.81988,2617.9,2617.7,7.35876856]
[1724345176784,3.81988,2617.9,2617.2,2.2865]
[1724345176959,3.81988,2617.9,2617.2,2.897242]
[1724345177155,3.82,2617.8,2617.2,2.897242]
[1724345177354,3.82016,2617.7,2617.2,2.897242]
[1724345177587,3.82016,2617.7,2617.2,2.2865]
[1724345177795,3.81988,2617.9,2617.2,2.2865]
[1724345178571,3.82017,2617.7,2617.2,2.2865]
[1724345179362,7.64045,2617.7,2617.2,2.2865]
[1724345180510,4.37031,2617.6,2617.2,2.2865]
[1724345181067,4.37031,2617.6,2616.9,6.13669]
[1724345181261,0.55,2617.6,2616.9,9.95789]
[1724345181802,0.55,2617.6,2616.9,6.13669]
[1724345182099,4.37032,2617.6,2617.0,0.613669]
[1724345182796,0.55,2617.6,2617.0,4.434819]
[1724345184399,0.55,2617.6,2617.1,3.82101]
[1724345185215,3.81994,2617.9,2617.2,6.29898]
[1724345185508,3.81994,2617.9,2617.3,4.832729]
[1724345185663,3.81935,2618.3,2617.5,3.82032]
[1724345185866,3.81935,2618.3,2617.5,3.82033]
[1724345186100,3.81935,2618.3,2617.6,3.8202]
[1724345186727,7.63873,2618.3,2617.6,3.8202]
[1724345187030,7.63875,2618.3,2617.6,3.8202]
[1724345187313,11.24943,2618.2,2617.5,3.82033]
[1724345187511,11.24943,2618.2,2617.5,4.9210859]
[1724345188228,11.24943,2618.2,2617.5,1.1007559]
[1724345188527,11.24943,2618.2,2617.4,2.3546]
[1724345188528,7.63874,2618.3,2617.6,6.12269]
[1724345189028,3.81944,2618.2,2617.6,6.12269]
[1724345189884,3.81935,2618.3,2617.6,9.9429]
[1724345190083,3.81935,2618.3,2617.6,6.12269]
[1724345190280,3.81935,2618.3,2617.7,0.612269]
[1724345190499,3.81935,2618.3,2617.7,4.432399]
[1724345191370,3.81935,2618.3,2617.7,0.612269]
[1724345191492,3.81935,2618.3,2617.7,4.432399]
[1724345191830,3.81935,2618.3,2617.7,0.612269]
[1724345191990,7.6382,2618.5,2617.9,2.2677]
[1724345192184,0.55,2618.4,2617.9,2.2677]
[1724345192633,3.81928,2618.3,2617.9,2.2677]
[1724345193191,3.81948,2618.2,2617.9,2.2677]
[1724345197487,7.63897,2618.2,2617.9,2.2677]
[1724345197686,7.63897,2618.2,2617.0,12.45]
[1724345197687,3.82066,2617.4,2617.0,12.45]
[1724345197900,3.82066,2617.4,2616.8,6.17678]
[1724345198139,3.82038,2617.6,2616.9,3.82131]
[1724345198140,3.82044,2617.5,2616.9,3.82131]
[1724345200502,3.82038,2617.6,2616.8,2.3554]
[1724345200503,3.82059,2617.4,2616.8,2.3554]
[1724345200707,3.82059,2617.4,2616.9,1.35356686]
[1724345202926,3.82038,2617.6,2617.0,2.3189]
[1724345203918,7.64078,2617.6,2617.0,2.3189]
[1724345204338,7.64076,2617.6,2617.0,2.3189]
[1724345204538,7.64076,2617.6,2617.2,2.3287]
[1724345204539,3.82038,2617.6,2617.2,2.3287]
[1724345205330,7.64076,2617.6,2617.2,2.3287]
[1724345205527,3.82038,2617.6,2617.2,2.3287]
[1724345205914,3.82045,2617.5,2617.0,2.3757]
[1724345206149,3.82074,2617.3,2617.0,2.3757]
[1724345206814,3.82061,2617.4,2617.0,2.3757]
[1724345208756,3.82073,2617.3,2617.0,2.3757]
[1724345209778,7.64157,2617.3,2617.0,2.3757]
[1724345210070,2.2712,2617.1,2616.4,2.3624]
[1724345210238,2.2712,2617.1,2616.2,2.3624]
[1724345210239,3.8217,2616.7,2616.2,2.3624]
[1724345210656,3.82178,2616.6,2616.2,2.3624]
[1724345210816,7.64317,2616.8,2616.2,2.980902]
[1724345211016,3.82167,2616.7,2616.2,2.3624]
[1724345215280,3.82147,2616.8,2616.2,6.18471]
[1724345215727,3.82103,2617.1,2616.4,2.2719]
[1724345215869,3.82038,2617.6,2616.8,2.2719]
[1724345216323,3.82071,2617.4,2616.8,6.09329]
[1724345216543,3.82074,2617.3,2616.9,0.991481]
[1724345217089,3.82071,2617.4,2616.9,0.991481]
[1724345217090,3.82089,2617.2,2616.9,0.991481]
[1724345217292,3.82089,2617.2,2616.8,2.2719]
[1724345218297,3.82063,2617.4,2616.8,2.2719]
[1724345218610,0.55,2617.3,2616.8,2.2719]
[1724345219012,3.82063,2617.4,2616.8,6.09335]
[1724345219676,2.77,2617.7,2616.9,6.31879015]
[1724345220013,3.82036,2617.6,2617.0,4.45293902]
[1724345220215,3.82036,2617.6,2617.1,2.4212]
[1724345222224,3.82046,2617.5,2617.1,2.4212]
[1724345222429,3.82036,2617.6,2617.1,2.4212]
[1724345222594,7.64076,2617.6,2617.1,3.11627953]
[1724345222796,3.82036,2617.6,2617.1,3.11627953]
[1724345223131,3.82036,2617.6,2617.1,2.4212]
[1724345223441,2.77,2617.7,2617.1,2.4212]
[1724345223442,3.82073,2617.3,2617.1,2.4212]
[1724345224232,3.82087,2617.2,2617.1,2.4212]
[1724345224438,3.82126,2617.0,2616.7,2.4101]
[1724345224737,5.135082,2617.2,2616.7,2.4101]
[1724345224738,4.37091,2617.2,2616.7,2.4101]
[1724345224880,3.82091,2617.2,2616.7,2.4101]
[1724345225084,3.82066,2617.4,2616.7,2.4101]
[1724345225280,3.82066,2617.4,2616.1,7.35876856]
[1724345225281,3.82038,2617.6,2617.0,2.3513]
[1724345225535,3.82038,2617.6,2617.0,6.17246]
[1724345226437,2.77,2617.7,2617.0,2.3513]
[1724345226724,3.82039,2617.6,2617.0,2.3513]
[1724345226884,3.82045,2617.5,2617.0,2.3513]
[1724345227084,3.82045,2617.5,2617.1,0.23513]
[1724345227512,3.82039,2617.6,2617.1,0.23513]
[1724345228528,3.82008,2617.8,2617.2,2.4651]
[1724345228692,7.64019,2617.8,2617.2,2.4651]
[1724345229024,3.82017,2617.7,2617.2,2.4651]
[1724345229216,3.82032,2617.6,2617.2,3.117236]
[1724345231039,3.82058,2617.4,2617.2,2.4651]
[1724345231390,7.6413,2617.4,2617.2,2.4651]
[1724345231739,3.82058,2617.4,2617.2,2.4651]
[1724345232042,7.64074,2617.6,2617.2,2.4651]
[1724345232342,3.82048,2617.5,2617.2,2.4651]
[1724345232544,3.0,2617.9,2617.2,2.4651]
[1724345232724,3.8207,2617.4,2617.2,2.4651]
[1724345232890,3.82069,2617.4,2617.2,2.4651]
[1724345233202,3.82073,2617.3,2616.7,2.3114]
[1724345234517,3.82073,2617.3,2616.7,6.13298]
[1724345234719,3.82069,2617.4,2616.8,2.3114]
[1724345234985,3.82069,2617.4,2616.9,0.613298]
[1724345235319,3.82069,2617.4,2617.0,2.3114]
[1724345235701,7.64141,2617.4,2617.0,2.3114]
[1724345236035,3.82069,2617.4,2617.0,2.3114]
[1724345236615,3.82035,2617.6,2617.0,2.3114]
[1724345236815,3.82045,2617.5,2617.2,2.3333]
[1724345237456,3.82044,2617.5,2617.2,2.3333]
[1724345237667,3.82035,2617.6,2617.2,2.3333]
[1724345237818,7.64077,2617.6,2617.2,2.3333]
[1724345238432,3.82044,2617.5,2617.2,2.3333]
[1724345239042,3.82015,2617.7,2617.2,2.3333]
[1724345239443,3.82036,2617.6,2617.2,2.3333]
[1724345239980,4.584365,2617.6,2617.2,2.3333]
[1724345240264,3.82065,2617.4,2617.2,2.3333]
[1724345241121,3.82038,2617.6,2617.2,2.3333]
[1724345241718,3.82015,2617.7,2617.2,2.3333]
[1724345241918,3.82015,2617.7,2617.2,6.15416]
[1724345242122,3.82015,2617.7,2617.2,7.23572859]
[1724345242570,3.81968,2618.1,2617.4,3.82057]
[1724345242762,0.59903563,2618.2,2617.9,6.20695]
[1724345242964,3.81878,2618.7,2618.0,6.28321677]
[1724345243266,3.81877,2618.7,2618.2,2.4781]
[1724345244447,3.81848,2618.9,2618.3,2.4615]
[1724345245447,3.81854,2618.8,2618.3,2.4615]
[1724345245773,3.81869,2618.7,2618.3,2.4615]
[1724345246178,3.819,2618.5,2618.3,2.4615]
[1724345246363,3.819,2618.5,2618.1,2.3822]
[1724345246565,4.200629,2618.7,2618.1,2.3822]
[1724345246566,3.81876,2618.7,2618.1,2.3822]
[1724345246762,3.81891,2618.6,2618.1,2.3822]
[1724345248250,3.81899,2618.5,2618.1,2.3822]
[1724345250743,7.63804,2618.5,2618.1,2.3822]
[1724345250943,3.81899,2618.5,2618.1,2.3822]
[1724345251763,6.18586,2618.7,2618.1,2.3822]
[1724345251764,7.63758,2618.7,2618.1,2.3822]
[1724345251960,3.81876,2618.7,2618.1,2.3822]
[1724345252308,3.81891,2618.6,2618.1,2.3822]
[1724345253750,3.81901,2618.5,2618.1,2.3822]
[1724345254174,7.63807,2618.5,2618.1,2.3822]
[1724345254385,4.582817,2618.5,2618.1,2.3822]
[1724345254695,3.81992,2617.9,2617.5,2.3158]
[1724345254894,3.81964,2618.1,2617.5,2.3158]
[1724345255093,5.9272,2618.4,2617.5,6.13612]
[1724345255094,3.8195,2618.2,2617.5,6.13612]
[1724345255305,3.81933,2618.3,2617.7,3.82007]
[1724345255517,3.81933,2618.3,2617.8,2.3223]
[1724345255925,7.63868,2618.3,2617.8,2.3223]
[1724345256097,3.81933,2618.3,2617.8,2.3223]
[1724345258102,7.63871,2618.3,2617.8,2.3223]
[1724345258812,3.81933,2618.3,2617.8,2.936535]
[1724345258991,3.81913,2618.4,2617.9,2.2646]
[1724345259163,3.81923,2618.4,2617.9,2.2646]
[1724345259669,3.8193,2618.3,2617.9,2.2646]
[1724345259977,7.63866,2618.3,2617.9,2.2646]
[1724345260366,3.8193,2618.3,2617.9,2.2646]
[1724345260668,7.63865,2618.3,2617.9,2.2646]
[1724345261181,3.81958,2618.1,2617.9,2.2646]
[1724345264208,3.8197,2618.0,2617.9,2.2646]
[1724345264367,3.8197,2618.0,2617.7,2.4589]
[1724345264568,3.81957,2618.1,2617.7,2.4589]
[1724345264882,3.81991,2617.9,2617.7,2.4589]
[1724345266098,7.63934,2618.1,2617.7,2.4589]
[1724345266469,3.81964,2618.1,2617.7,2.4589]
[1724345267810,7.63931,2618.1,2617.7,2.4589]
[1724345268214,7.6393,2618.1,2617.7,2.4589]
[1724345268612,3.81964,2618.1,2617.7,2.4589]
[1724345270114,3.81914,2618.4,2617.8,6.27888]
[1724345270315,3.81897,2618.6,2618.0,2.4589]
[1724345270742,3.81913,2618.4,2618.0,2.4589]
[1724345272147,7.63836,2618.4,2618.0,2.4589]
[1724345272378,3.81888,2618.6,2618.1,2.3304]
[1724345273106,3.81915,2618.4,2618.1,2.3304]
[1724345273921,3.81963,2618.1,2617.9,2.3685]
[1724345275446,7.63933,2618.1,2617.4,6.26936]
[1724345275649,4.201593,2618.1,2617.4,6.26936]
[1724345276340,4.201593,2618.1,2617.5,2.4488]
[1724345276924,4.201593,2618.1,2617.5,6.26922]
[1724345276925,3.81963,2618.1,2617.5,6.26922]
[1724345278157,7.63929,2618.1,2617.5,2.4488]
[1724345278324,3.81963,2618.1,2617.5,2.4488]
[1724345279147,3.81963,2618.1,2617.6,2.4488]
[1724345280369,3.81936,2618.3,2617.6,4.829139]
[1724345280568,3.81936,2618.3,2617.7,6.31594]
[1724345281163,3.81907,2618.5,2617.8,2.3883]
[1724345281381,7.63816,2618.5,2617.9,3.81984]
[1724345281526,3.81907,2618.5,2618.0,2.3883]
[1724345282062,3.81896,2618.6,2618.0,2.3883]
[1724345282359,3.81874,2618.7,2618.0,2.3883]
[1724345282360,3.819,2618.5,2618.0,2.3883]
[1724345282928,3.81874,2618.7,2618.0,2.3883]
[1724345282929,3.81886,2618.6,2618.0,2.3883]
[1724345283132,3.81886,2618.6,2618.1,2.4133]
[1724345283328,3.81874,2618.7,2618.1,2.4133]
[1724345283631,6.58848,2618.9,2618.3,2.4133]
[1724345284371,3.81869,2618.7,2618.3,2.4133]
[1724345284540,4.477559,2618.7,2618.3,2.4133]
[1724345284728,4.477609,2618.7,2618.3,2.4133]
[1724345285069,8.296439,2618.7,2618.3,2.4133]
[1724345285370,6.58844,2618.9,2618.3,2.4133]
[1724345285576,3.81864,2618.8,2618.3,2.4133]
[1724345286369,3.81877,2618.7,2618.3,2.4133]
[1724345286742,3.81891,2618.6,2618.3,2.4133]
[1724345286938,4.582678,2618.6,2618.3,2.4133]
[1724345288484,3.81905,2618.5,2618.3,2.4133]
[1724345289348,7.63814,2618.5,2618.3,2.4133]
[1724345289564,3.81912,2618.4,2617.9,2.2828]
[1724345290082,3.81905,2618.5,2617.9,2.2828]
[1724345290083,6.2412,2618.7,2617.9,2.2828]
[1724345290260,3.82001,2617.8,2617.5,2.2828]
[1724345290446,7.64012,2617.8,2617.5,2.2828]
[1724345290651,3.82001,2617.8,2617.5,2.2828]
[1724345290863,4.583986,2617.8,2617.1,6.17752]
[1724345291174,3.82001,2617.8,2617.1,6.17752]
[1724345291377,3.82001,2617.8,2617.1,2.3566]
[1724345291577,3.8203,2617.6,2617.1,2.3566]
[1724345291734,3.82045,2617.5,2617.1,2.3566]
[1724345292243,3.8203,2617.6,2617.1,2.3566]
[1724345292561,4.20233,2617.6,2617.1,2.3566]
[1724345292762,8.02274,2617.6,2617.1,2.3566]
[1724345293071,4.20233,2617.6,2617.1,2.3566]
[1724345296176,3.82044,2617.5,2617.1,2.3566]
[1724345296707,0.38203,2617.6,2617.1,2.3566]
[1724345296873,3.82025,2617.7,2617.1,2.3566]
[1724345297079,3.8203,2617.6,2617.1,2.3566]
[1724345299839,3.82002,2617.8,2617.2,2.3968]
[1724345300239,3.82015,2617.7,2617.2,2.3968]
[1724345300646,3.82051,2617.5,2617.2,2.3968]
[1724345301156,3.82008,2617.8,2617.2,2.3968]
[1724345301653,7.64016,2617.8,2617.2,2.3968]
[1724345301853,3.82008,2617.8,2617.2,2.3968]
[1724345302385,7.64016,2617.8,2617.2,2.3968]
[1724345302759,3.82008,2617.8,2617.2,2.3968]
[1724345302971,7.64017,2617.8,2617.2,3.400667]
[1724345303550,3.82017,2617.7,2617.2,3.400667]
[1724345304088,3.82017,2617.7,2617.2,2.3968]
[1724345304246,3.82031,2617.6,2617.2,2.3968]
[1724345304445,3.82052,2617.5,2617.2,2.3968]
[1724345305183,3.82031,2617.6,2617.2,2.3968]
[1724345305351,7.64069,2617.6,2617.2,2.3968]
[1724345305753,3.82031,2617.6,2617.2,2.3968]
[1724345306696,3.81977,2618.0,2617.4,2.4993]
[1724345307705,3.82001,2617.8,2617.4,2.4993]
[1724345308011,3.81977,2618.0,2617.4,2.4993]
[1724345308314,3.82002,2617.8,2617.4,2.4993]
[1724345309406,3.82002,2617.8,2617.4,3.131317]
[1724345309579,3.82002,2617.8,2617.5,2.4398]
[1724345309976,7.64011,2617.8,2617.5,2.4398]
[1724345310405,7.64012,2617.8,2617.5,2.4398]
[1724345311117,3.82002,2617.8,2617.5,2.4398]
[1724345311414,0.76398,2617.8,2617.3,2.3769]
[1724345311616,3.82058,2617.5,2617.3,2.3769]
[1724345311814,3.82058,2617.4,2617.3,2.3769]
[1724345312916,3.82073,2617.3,2617.0,2.2527]
[1724345314403,7.64156,2617.3,2617.0,2.2527]
[1724345314589,3.82073,2617.3,2617.0,2.2527]
[1724345319823,3.82102,2617.1,2617.0,2.2527]
[1724345321286,7.64173,2617.3,2617.0,2.2527]
[1724345321481,3.82089,2617.2,2617.0,2.2527]
[1724345322388,3.82069,2617.4,2617.0,2.2527]
[1724345322625,4.37079,2617.3,2617.0,2.2527]
[1724345322982,3.82088,2617.2,2617.0,2.2527]
[1724345323635,7.64183,2617.2,2617.0,2.2527]
[1724345323961,7.64183,2617.2,2616.6,2.2594]
[1724345323962,3.82102,2617.1,2616.6,2.2594]
[1724345324103,3.82155,2616.8,2616.6,2.2594]
[1724345324288,3.8216,2616.7,2616.6,2.2594]
[1724345324487,3.82155,2616.8,2616.2,7.35876856]
[1724345324488,7.64313,2616.8,2616.3,2.3806]
[1724345324731,3.82162,2616.7,2616.3,2.3806]
[1724345325225,3.82199,2616.5,2616.3,2.3806]
[1724345325585,0.67512676,2616.8,2615.9,2.3806]
[1724345325586,3.82205,2616.4,2615.9,2.3806]
[1724345325789,3.82236,2616.2,2615.9,2.3806]
[1724345327233,8.409251,2616.2,2615.9,2.3806]
[1724345327529,8.409251,2616.2,2615.7,2.3847]
[1724345327530,4.586801,2616.2,2615.7,2.3847]
[1724345327693,3.82236,2616.2,2615.7,2.3847]
[1724345328301,7.64548,2616.0,2615.7,2.3847]
[1724345328716,3.82272,2616.0,2615.7,2.3847]
[1724345329131,3.8228,2615.9,2615.7,2.3847]
[1724345329287,3.8228,2615.9,2615.4,2.4567]
[1724345330329,3.82323,2615.6,2615.1,2.2835]
[1724345330904,7.64656,2615.6,2615.1,2.2835]
[1724345331329,3.82323,2615.6,2615.1,2.2835]
[1724345332443,3.82323,2615.6,2615.1,3.01283552]
[1724345334008,3.82298,2615.8,2615.2,2.4639]
[1724345334212,3.82298,2615.8,2615.2,6.2876]
[1724345334452,7.64543,2616.0,2615.2,6.2876]
[1724345334616,3.55,2615.9,2615.4,2.4639]
[1724345335759,3.0,2615.9,2615.4,2.4639]
[1724345336254,3.82256,2616.1,2615.5,2.4639]
[1724345336426,3.82256,2616.1,2615.6,2.4639]
[1724345337759,3.82242,2616.2,2615.6,2.4639]
[1724345338265,3.82241,2616.2,2615.6,2.54036078]
[1724345338466,3.82236,2616.2,2615.7,0.63636108]
[1724345338642,3.82236,2616.2,2615.8,2.4129]
[1724345338813,9.59213,2616.4,2615.8,2.4129]
[1724345339016,3.0,2616.3,2615.8,2.4129]
[1724345339227,6.82226,2616.3,2615.8,3.10777572]
[1724345339430,3.82226,2616.3,2615.8,3.10777572]
[1724345339627,3.82236,2616.2,2615.8,3.10777572]
[1724345339917,3.82236,2616.2,2615.8,2.4129]
[1724345340366,3.82256,2616.1,2615.8,2.4129]
[1724345340525,7.64481,2616.2,2615.8,2.4129]
[1724345340730,3.82236,2616.2,2615.8,2.4129]
[1724345341424,3.82241,2616.2,2615.8,2.4129]
[1724345341796,3.82263,2616.0,2615.8,2.4129]
[1724345344154,2.77,2616.4,2615.5,2.3826]
[1724345344155,3.82303,2615.8,2615.5,2.3826]
[1724345344456,3.82309,2615.7,2615.5,2.3826]
[1724345344637,3.82304,2615.8,2615.5,2.3826]
[1724345345154,3.82279,2615.9,2615.5,2.3826]
[1724345346542,7.64565,2615.9,2615.5,2.3826]